Cogmind - Beta 13 X1 @@@ ROGUE MODE // 2023.11.26 @ 19:32:11 Player: Shobalk Result: Destroyed by D-53 Grenadier with Mini Grenade Launcher Performance ------------- Evolutions (0) 0 Regions Visited (2) 400 Robots Destroyed (18) 90 Value Destroyed (307) 307 Prototype IDs (4) 80 Alien Tech Used (0) 0 Bonus (0) 0 TOTAL SCORE: 877 Bonus ------- None Cogmind --------- Core Integrity 0/250 Matter 300/300 Energy 100/100 System Corruption 1% Temperature Cool (0) Movement Core (400) Ox7 Location -10/Mines Parts ------- > --- POWER (1) -------- (None) > --- PROPULSION (2) --- (None) > --- UTILITY (2) ------ Large Storage Unit Power Shielding > --- WEAPON (2) ------- Beam Cannon > --- INVENTORY (15) --- Ion Engine Visual Processing Unit Sensor Array Sensor Array Signal Interpreter Hacking Suite Tractor Beam Small Laser Small Laser Small Laser Assault Rifle Peak State ------------ > --- POWER ------------ Ion Engine > --- PROPULSION ------- Light Treads Light Treads > --- UTILITY ---------- Large Storage Unit Power Shielding > --- WEAPON ----------- Beam Cannon Assault Rifle > --- INVENTORY -------- Ion Engine Light Treads Visual Processing Unit Sensor Array Sensor Array Hacking Suite Light Assault Rifle [Rating: 8] Favorites ----------- Power Ion Engine Engine Ion Engine Propulsion Light Treads Treads Light Treads Utility Large Storage Unit Storage Large Storage Unit Protection Power Shielding Weapon Beam Cannon Energy Gun EM Pulse Gun Energy Cannon Beam Cannon Ballistic Gun Light Assault Rifle Build | -11 -10 -10 ------- Run | Jun Mat Min Slots Evolved . | . . . Power . | . . . Propulsion . | . . . Utility . | . . . Weapon . | . . . Parts Attached 13 | 7 5 1 Power 2 | 1 1 . Engine 2 | 1 1 . Core . | . . . Reactor . | . . . Propulsion 3 | 2 . 1 Treads 3 | 2 . 1 Leg . | . . . Wheel . | . . . Hover . | . . . Flight . | . . . Utility 3 | 1 2 . Device . | . . . Storage 2 | 1 1 . Processor . | . . . Hackware . | . . . Protection 1 | . 1 . Artifact . | . . . Weapon 5 | 3 2 . Energy Gun 1 | 1 . . Energy Cannon 1 | . 1 . Ballistic Gun 3 | 2 1 . Ballistic Cannon . | . . . Launcher . | . . . Special Weapon . | . . . Impact Weapon . | . . . Slashing Weapon . | . . . Piercing Weapon . | . . . Special Melee Weapon . | . . . Unidentified Prototypes . | . . . Parts Lost 5 | . 1 4 Power . | . . . Propulsion 3 | . . 3 Utility . | . . . Weapon 2 | . 1 1 Highest Loss Streak 4 | . 1 4 To Critical Strikes . | . . . Average Slot Usage (%) 97 | . 97 98 Engine 14 | . 14 14 Treads 28 | . 28 28 Storage 15 | . 16 14 Protection 9 | . 9 14 Energy Cannon 12 | . 12 14 Ballistic Gun 14 | . 15 12 Naked Turns . | . . . Heaviest Build 35 | 14 35 30 Greatest Support 40 | 40 40 40 Greatest Overweight (x) 7 | . . 7 Average Overweight (x) . | . . . Largest Inventory Capacity 15 | 8 15 15 Average Capacity 13 | 6 13 15 Most Carried 14 | 2 12 14 Average Carried 7 | . 7 11 Final Capacity 15 | 8 15 15 Final Carried 12 | 1 12 11 Class Distribution -------------------- 100% | Mutant Dominant Class ---------------- Mutant | -10/Materials Mutant | -10/Mines Resources | -11 -10 -10 ----------- Run | Jun Mat Min Matter Collected 456 | 254 202 . Remotely . | . . . Salvage Created 486 | . 486 . Parts 40 | . 40 . Haulers Intercepted 1 | . 1 . Recyclers Shooed 1 | . 1 . Parts Field Recycled . | . . . Retrieved Matter . | . . . Parts Self-Destructed . | . . . Prevented . | . . . Kills | -11 -10 -10 ------- Run | Jun Mat Min Combat Hostiles Destroyed 11 | . 11 . Guns 3 | . 3 . Cannons 7 | . 7 . Classes Destroyed 7 | . 7 . Builder 1 | . 1 . Hauler 1 | . 1 . Recycler 1 | . 1 . Operator 2 | . 2 . Watcher 2 | . 2 . Swarmer 6 | . 6 . Grunt 5 | . 5 . Best Kill Streak 4 | . 4 . Combat Bots Only 3 | . 3 . Max Kills in Single Turn 1 | . 1 . Gunslinging . | . . . Exploded . | . . . Melee . | . . . Uniques/NPCs Destroyed . | . . . Combat | -11 -10 -10 -------- Run | Jun Mat Min Damage Taken 1134 | . 545 589 Core 263 | . 96 167 Absorbed by Shields . | . . . Redirected to Shielding 17 | . 8 9 Core Remaining (%) 100 | 100 . . Volleys Fired 56 | . 55 1 Largest 2 | . 2 2 Hottest 80 | . 80 80 Shots Fired 112 | . 110 2 Gun 58 | . 57 1 Cannon 54 | . 53 1 Launcher . | . . . Special . | . . . Kinetic 58 | . 57 1 Thermal 54 | . 53 1 Explosive . | . . . Electromagnetic . | . . . Robot Hit Streak 6 | . 6 6 Robot Miss Streak 5 | . 5 1 Penetration Max . | . . . Secondary Targets . | . . . Shots Hit Robots 51 | . 50 1 Core Hits 22 | . 22 . Critical Kills 1 | . 1 . Critical Parts Destroyed . | . . . Critical Strikes 1 | . 1 . Meltdown 1 | . 1 . Melee Attacks . | . . . Impact . | . . . Slashing . | . . . Piercing . | . . . Sneak Attacks . | . . . Combat Hostiles . | . . . Follow-up Attacks . | . . . Damage Inflicted 799 | . 782 17 Guns 305 | . 305 . Cannons 494 | . 477 17 Explosions . | . . . Melee . | . . . Ramming . | . . . Kinetic 305 | . 305 . Thermal 494 | . 477 17 Explosive . | . . . Electromagnetic . | . . . Impact . | . . . Slashing . | . . . Piercing . | . . . Highest Corruption 1 | . . 1 Average Corruption 1 | . . 1 Corruption Purged . | . . . Corruption Blocked . | . . . Effects 1 | . . 1 Parts Rejected 1 | . . 1 Overload Shots . | . . . Overflow Damage 16 | . 16 . Projectiles 16 | . 16 . Explosions . | . . . Melee . | . . . Knockbacks . | . . . Impact . | . . . Kinetic . | . . . Secondary . | . . . Self-Inflicted Damage . | . . . Shots . | . . . Rammed 1 | . 1 . Targets Rammed 1 | . 1 . Kicked . | . . . Crushed . | . . . Highest Temperature 234 | . 234 40 Average Temperature 74 | . 75 20 Received Heat Transfer 62 | . 42 20 Siege Activations . | . . . Robots Corrupted . | . . . Combat Hostiles . | . . . Parts Fried . | . . . Impact Corruptions . | . . . Robots Melted 1 | . 1 . Combat Hostiles 1 | . 1 . Parts Melted 3 | . 3 . Heat Transferred 1036 | . 999 37 Parts Sabotaged . | . . . Parts Stolen . | . . . Parts Stripped . | . . . Power Chain Reactions . | . . . Missiles Intercepted . | . . . Alert | -11 -10 -10 ------- Run | Jun Mat Min Peak Influence 245 | . 245 13 Initial 13 | . . 13 Average 87 | . 110 11 Maximum Alert Level 1 | . 1 . Low Security (%) 93 | 100 92 100 Level 1 6 | . 7 . Level 2 . | . . . Level 3 . | . . . Level 4 . | . . . Level 5 . | . . . High Security . | . . . Max Security . | . . . Squads Dispatched 4 | . 4 . Investigation 1 | . 1 . Extermination . | . . . Reinforcement 3 | . 3 . Assault . | . . . Garrison . | . . . Intercept . | . . . Searches Triggered . | . . . Construction Impeded . | . . . Haulers Reinforced . | . . . Active Scanning Responses . | . . . Cargo Convoy Interrupts . | . . . Stealth | -11 -10 -10 --------- Run | Jun Mat Min Distress Signals 3 | . 3 . Communications Jammed . | . . . Distress Signals . | . . . Times Spotted 26 | . 16 10 Peak Tracking Total 8 | . 4 8 Tactical Retreats 2 | . 1 1 Traps | -11 -10 -10 ------- Run | Jun Mat Min Traps Triggered 1 | . 1 . Indirectly . | . . . Trap Hack Attempts . | . . . Triggered . | . . . Disarmed . | . . . Reprogrammed . | . . . Reused . | . . . Traps Extracted . | . . . Installed . | . . . Triggered . | . . . Machines | -11 -10 -10 ---------- Run | Jun Mat Min Machines Disabled 1 | . 1 . Max in Single Turn 1 | . 1 . Machines Repaired . | . . . Machines Sabotaged . | . . . Overloaded Fab Kills . | . . . Hacking | -11 -10 -10 --------- Run | Jun Mat Min Machines Accessed 4 | . 4 . Terminals 3 | . 3 . Fabricators . | . . . Repair Stations 1 | . 1 . Recycling Units . | . . . Scanalyzers . | . . . Garrison Access . | . . . Total Hacks 11 | . 11 . Successful 6 | . 6 . Failed 5 | . 5 . Catastrophic 1 | . 1 . Database Lockouts . | . . . Manual 4 | . 4 . Terminals 9 | . 9 . Fabricators . | . . . Repair Stations 2 | . 2 . Recycling Units . | . . . Scanalyzers . | . . . Garrison Access . | . . . Terminal Hacks 5 | . 5 . Record 1 | . 1 . Part Schematic 1 | . 1 . Prototype ID Bank 2 | . 2 . Zone Layout 1 | . 1 . Fabricator Hacks . | . . . Repair Station Hacks 1 | . 1 . Scan Component 1 | . 1 . Recycling Unit Hacks . | . . . Scanalyzer . | . . . Garrison Access Hacks . | . . . Unauthorized Hacks . | . . . Terminals . | . . . Fabricators . | . . . Repair Stations . | . . . Recycling Units . | . . . Scanalyzers . | . . . Garrison Access . | . . . Data Cores Recovered . | . . . Used . | . . . Hacking Detections 4 | . 4 . Full Trace Events . | . . . Feedback Events . | . . . Feedback Blocked . | . . . Robot Schematics Acquired . | . . . Robots Built . | . . . Authchips . | . . . Time . | . . . Total Robot Build Rating . | . . . Part Schematics Acquired 1 | . 1 . Parts Built . | . . . Authchips . | . . . Time . | . . . Total Part Build Rating . | . . . Parts Repaired . | . . . Time . | . . . Parts Recycled . | . . . Recycled Matter . | . . . Retrieved Matter . | . . . Retrieved Components . | . . . Parts Scanalyzed . | . . . Part Schematics Acquired . | . . . Parts Damaged . | . . . Bothacking | -11 -10 -10 ------------ Run | Jun Mat Min Used RIF Installer . | . . . Robots Hacked . | . . . Non-combat . | . . . Combat . | . . . Robot Hacks Applied . | . . . Relay Couplers Released . | . . . Fabnet Peak Effective % . | . . . Robots Rewired . | . . . Allies Hacked . | . . . Hacks Repelled . | . . . Allies | -11 -10 -10 -------- Run | Jun Mat Min Total Allies . | . . . Largest Group . | . . . Highest-Rated Group . | . . . Highest-Rated Ally . | . . . Total Orders . | . . . Ally Attacks . | . . . Total Damage . | . . . Kills . | . . . Allies Corrupted . | . . . Allies Melted . | . . . Intel | -11 -10 -10 ------- Run | Jun Mat Min Robot Analysis Total . | . . . Derelict Logs Recovered 1 | . . 1 Drone Launches . | . . . Drone Recoveries . | . . . Exploration | -11 -10 -10 ------------- Run | Jun Mat Min Turns Passed 1297 | 88 1001 208 Spaces Moved 670 | 49 497 124 Core 3 | 2 . 1 Treads 667 | 47 497 123 Legs . | . . . Wheels . | . . . Hover . | . . . Flight . | . . . Fastest Speed 50 | 50 160 160 Average Speed 160 | 155 160 161 Slowest Speed 400 | 160 160 400 Overloaded Moves . | . . . Propulsion Burnouts . | . . . Robots Hopped . | . . . Cave-ins Triggered . | . . . Exploration Rate (%) 37 | 6 74 33 Regions Visited 2 Branch Regions 1 Pre-discovered Areas 1 | . . 1 Known Exits Taken . | . . . Unknown Exits Taken 2 | 1 1 . Scrap Searched . | . . . Spaces Dug . | . . . Terrain Destroyed . | . . . Melee . | . . . Projectile . | . . . AOE . | . . . Terrain Rammed . | . . . Walls Destroyed . | . . . Machines Disabled . | . . . Actions | -11 -10 -10 --------- Run | Jun Mat Min Total 783 | 58 594 131 Wait 23 | . 22 1 Move 668 | 48 496 124 Hop . | . . . Pick Up 15 | 1 12 2 Fast Attach 9 | 7 2 . Attach 2 | . 1 1 Detach 2 | 1 1 . Swap 2 | . 2 . Drop 5 | 1 2 2 Fire 56 | . 55 1 Melee . | . . . Ram . | . . . Kick . | . . . Crush 1 | . 1 . Escape Stasis . | . . . Rewire . | . . . Trap . | . . . Miscellaneous . | . . . Route ------- -11/Junkyard -10/Materials (discovered 3 exits: [*Mat] / [*Min x2]) -10/Mines History --------- Turn | Location | Event 10 | -11/Junkyard | Discovered new exit (range 14) 89 | -11/Junkyard | Entered Materials 292 | -10/Materials | Discovered new exit (range 14) 305 | -10/Materials | Build established: Mutant 471 | -10/Materials | Discovered new exit (range 16) 895 | -10/Materials | Discovered new exit (range 6) 1090 | -10/Materials | Entered Mines 1167 | -10/Mines | Found a hidden stash of uninstalled traps 1234 | -10/Mines | Learned location of Zion (-7) 1245 | -10/Mines | Assembled infested the area 1250 | -10/Mines | Assisted by a Guerilla fighting off Assembled 1293 | -10/Mines | Core integrity fell below 50% 1297 | -10/Mines | Core integrity fell below 20% 1298 | -10/Mines | Destroyed by D-53 Grenadier with Mini Grenade Launcher Last Messages --------------- World map updated: -7/Zion. 01245_ ALERT: Infestation in the mines, dispatching Demolisher response squad. 01250_ A derelict emerges from the shadows: "You need to get out of here! I've been tracking a group of Assembled to figure out where they're coming from, and they're closing on this area, come on!" 01257_ T-07 Excavator destroyed. 01270_ as-70348 sneak attacks. 01270_ U-05 Engineer destroyed. 01276_ Lgt. Assault Rifle destroyed. 01276_ System corrupted by crushing effect (+1). 01277_ as-41287 destroyed. 01282_ as-79859 destroyed. 01288_ Lgt. Treads destroyed. 01288_ Matter Pump disabled. 01290_ System corrupted: Ion Engine rejected. 01292_ T-07 Excavator destroyed. 01294_ Lgt. Treads destroyed. 01296_ The unstable cave ceiling collapses. Map ----- +----------------------------------------------------+ | ?????????????????????????????????????????????????? | | ?????????????????????????????????????????????????? | | ?????????????????????????????????????????????????? | | ?????????????????????????????##??????????????????? | | ????????????????????????????? #??????????????????? | | ????????????????????????????? #??????????????????? | | ????????????????????????????? #??????????????????? | | ????????????????????????????? #??????????????????? | | ????????????????????????????? ???????????????????? | | ???????????????????????????## ???????????????????? | | ???????????????????????????#*|???????????????????? | | ??????????????????????????#=%???????????????????? | | ??????????????????????????# #???????????????????? | | ????????????????????##???# #???????????????????? | | #??????????????????? ???# #???????????????????? | | " #??????????????????# ???# #???????????????????? | | " #??????????"""????# #??# #???????????????????? | | " ??????????"""????# #??# #?????####??????????? | | #?????????"""????# #??# #????## ##?????????? | | # ###?????? ????# #??# ###??# #?????????? | | # ##?????# #????# #### ###?# #?????????? | | ####### #???## ### #?????????? | | #??## % ##???###??? | | # ##### #?## d ## #### ###? | | ## #??## ### d # ### ## ## | | ### ## #### # # @ ## #?### # | | ##???# ## ### #???## | | ?????# ###### ## #????## | | ?????# #????## ## #?????# # | | ?????# #?????## ## #????## | | ?????# #??????## = ### #???## | | ?????# #???????# #?# #??## # | | ?????# #???????# # # #?# #### ## | | ?????# #???????# ######?# # ##? | | ?????# #???????### #####??????#### ## ####?? | | ?????? ?????????# ###########???# ###### #????? | | ?????? ?????????# #??## ##???# #????? | | ?????? ?????????########### #?## &&##??# #????? | | ?????? ???????????????????# #?# && ##?# #????? | | ????????????????????????????# #?# #?# #????? | | ????????????????????????????# #?## #?# #????? | | ????????????????????????????# #??# # ##?# #????? | | ????????????????????????????# #?## ####??? ????? | | ????????????????????????????# ### ##????? ????? | | ????????????????????????????# #????? ????? | | ????????????????????????????#### #????? | | ???????????????????????????????## #####????? | | ????????????????????????????????## ##????????? | | ?????????????????????????????????## #?????????? | | ???????????????????????????????????# ##?????????? | +----------------------------------------------------+ Best States ------------- Heat Dissipation 25 Energy Generation 10 Energy Capacity 250 Matter Stores 300 Matter Capacity 300 Sight Range 16 Terrain Scan Density 10 Power Shielding 33 Evasion (%) 40 Recoil Reduction 2 Item Schematics ----------------- Huge Storage Unit | -10/Materials | Hacked Robot Schematics ------------------ None Fabricated ------------ Nothing Alien Tech Used ----------------- None Achievements -------------- None Challenges ------------ None Game ------ Seed HellfirePropulsionMace Manual? 0 Play Time 00:12:05 Cumulative 72.6 hours Start 2023.11.26 @ 19:15:34 End 2023.11.26 @ 19:32:11 Sessions 1 Manual Loads 0 Difficulty Rogue Special Mode None Game No. 85 Rogue 85 Adventurer 0 Explorer 0 Win Type - Total 1 Types 1/0/0/0/0/0/0/0/0 Lore% 55 Gallery% 62 Achievement% 41 Wizard Run 0 Options --------- ASCII 1 Keyboard 1 Movement Numpad Keybinds 0 Fullscreen 2 Font 20/SmallcapsGlow Map View 66x50 Tactical HUD 1 Map Filters NONE Filters NONE Steam 1 RUN: 1874510d-5657-417b-bd5c-e5ff8b8bd4f6